[Event "Titled Tuesday Blitz October 31 Late 2023"]
[White "Yeritsyan, Hayk"]
[Black "Mekhitarian, Krikor Sevag"]
[WhiteFideId "13307320"]
[BlackFideId "2107660"]
[WhiteElo "2436"]
[BlackElo "2775"]
[Result "1/2-1/2"]
[Round "1"]
[TimeControl "180+1"]
[Date "2023.10.31"]
[WhiteClock "0:00:08"]
[BlackClock "0:00:07"]
[Board "54"]

1. d4 {[%clk 0:02:56]}  Nf6 {[%clk 0:02:59]} 2. Nf3 {[%clk 0:02:57]}  g6 {[%clk 0:02:59]} 3. Bf4 {[%clk 0:02:56]}  Bg7 {[%clk 0:02:59]} 4. h3 {[%clk 0:02:57]}  O-O {[%clk 0:02:59]} 5. e3 {[%clk 0:02:58]}  c5 {[%clk 0:02:59]} 6. c3 {[%clk 0:02:58]}  Qb6 {[%clk 0:02:59]} 7. Qb3 {[%clk 0:02:58]}  d6 {[%clk 0:03:00]} 8. Be2 {[%clk 0:02:57]}  Be6 {[%clk 0:03:00]} 9. Qxb6 {[%clk 0:02:57]}  axb6 {[%clk 0:03:01]} 10. a3 {[%clk 0:02:58]}  Bd7 {[%clk 0:02:59]} 11. Nbd2 {[%clk 0:02:58]}  cxd4 {[%clk 0:02:59]} 12. exd4 {[%clk 0:02:58]}  b5 {[%clk 0:03:00]} 13. O-O {[%clk 0:02:57]}  Na6 {[%clk 0:03:00]} 14. Rfe1 {[%clk 0:02:54]}  Nd5 {[%clk 0:02:58]} 15. Bg3 {[%clk 0:02:53]}  Nac7 {[%clk 0:02:55]} 16. Bd3 {[%clk 0:02:52]}  Rfe8 {[%clk 0:02:55]} 17. Rad1 {[%clk 0:02:48]}  Bc6 {[%clk 0:02:54]} 18. Re2 {[%clk 0:02:47]}  Ne6 {[%clk 0:02:48]} 19. Bc2 {[%clk 0:02:37]}  Nb6 {[%clk 0:02:26]} 20. Rde1 {[%clk 0:02:33]}  Bd5 {[%clk 0:02:11]} 21. Bd3 {[%clk 0:02:29]}  Nc4 {[%clk 0:02:05]} 22. Nxc4 {[%clk 0:02:22]}  bxc4 {[%clk 0:02:03]} 23. Be4 {[%clk 0:02:21]}  Ra5 {[%clk 0:01:48]} 24. Bxd5 {[%clk 0:02:16]}  Rxd5 {[%clk 0:01:48]} 25. Nd2 {[%clk 0:02:13]}  Rc8 {[%clk 0:01:47]} 26. Nf3 {[%clk 0:02:05]}  Ra8 {[%clk 0:01:33]} 27. Nd2 {[%clk 0:02:01]}  Rc8 {[%clk 0:01:32]} 28. Kf1 {[%clk 0:01:56]}  Rb5 {[%clk 0:01:28]} 29. Nf3 {[%clk 0:01:46]}  Bf6 {[%clk 0:01:27]} 30. Rd1 {[%clk 0:01:45]}  Nc7 {[%clk 0:01:26]} 31. Bh4 {[%clk 0:01:42]}  Bxh4 {[%clk 0:01:24]} 32. Nxh4 {[%clk 0:01:42]}  Nd5 {[%clk 0:01:24]} 33. g3 {[%clk 0:01:39]}  Ra8 {[%clk 0:01:24]} 34. Ng2 {[%clk 0:01:37]}  Kf8 {[%clk 0:01:19]} 35. Ne3 {[%clk 0:01:36]}  Nb6 {[%clk 0:01:20]} 36. Rdd2 {[%clk 0:01:32]}  d5 {[%clk 0:01:14]} 37. Kg2 {[%clk 0:01:29]}  Na4 {[%clk 0:01:14]} 38. f4 {[%clk 0:01:17]}  Ra6 {[%clk 0:01:13]} 39. Kf3 {[%clk 0:01:10]}  Rab6 {[%clk 0:01:10]} 40. Nd1 {[%clk 0:01:10]}  e6 {[%clk 0:01:09]} 41. Rc2 {[%clk 0:01:05]}  Kg7 {[%clk 0:01:08]} 42. g4 {[%clk 0:01:05]}  Kf6 {[%clk 0:01:08]} 43. g5+ {[%clk 0:01:03]}  Kg7 {[%clk 0:01:07]} 44. h4 {[%clk 0:01:03]}  h6 {[%clk 0:01:06]} 45. Kg3 {[%clk 0:01:02]}  Ra6 {[%clk 0:01:06]} 46. Nf2 {[%clk 0:00:56]}  Rab6 {[%clk 0:01:05]} 47. Nd1 {[%clk 0:00:56]}  h5 {[%clk 0:00:58]} 48. Kf3 {[%clk 0:00:53]}  Kf8 {[%clk 0:00:58]} 49. Kg3 {[%clk 0:00:53]}  Rb3 {[%clk 0:00:58]} 50. Kg2 {[%clk 0:00:51]}  Ke7 {[%clk 0:00:57]} 51. Kf2 {[%clk 0:00:50]}  Kd6 {[%clk 0:00:57]} 52. Kg2 {[%clk 0:00:49]}  Kc6 {[%clk 0:00:44]} 53. Kf2 {[%clk 0:00:42]}  R6b5 {[%clk 0:00:43]} 54. Kg2 {[%clk 0:00:40]}  Kb6 {[%clk 0:00:44]} 55. Kf2 {[%clk 0:00:40]}  Ka5 {[%clk 0:00:44]} 56. Kg2 {[%clk 0:00:40]}  Rb6 {[%clk 0:00:44]} 57. Kf2 {[%clk 0:00:40]}  Ra6 {[%clk 0:00:42]} 58. Ke1 {[%clk 0:00:37]}  Rab6 {[%clk 0:00:38]} 59. Rf2 {[%clk 0:00:33]}  R6b5 {[%clk 0:00:31]} 60. Rfe2 {[%clk 0:00:31]}  Nb6 {[%clk 0:00:32]} 61. Kd2 {[%clk 0:00:28]}  Nc8 {[%clk 0:00:24]} 62. Kc1 {[%clk 0:00:28]}  Nd6 {[%clk 0:00:24]} 63. Re5 {[%clk 0:00:16]}  Rb6 {[%clk 0:00:12]} 64. Ne3 {[%clk 0:00:13]}  Ka6 {[%clk 0:00:12]} 65. Nd1 {[%clk 0:00:12]}  Ka7 {[%clk 0:00:12]} 66. Ne3 {[%clk 0:00:11]}  Kb8 {[%clk 0:00:12]} 67. Nd1 {[%clk 0:00:12]}  Nf5 {[%clk 0:00:13]} 68. Rxf5 {[%clk 0:00:12]}  exf5 {[%clk 0:00:12]} 69. Re2 {[%clk 0:00:10]}  Rc6 {[%clk 0:00:07]} 70. Re5 {[%clk 0:00:08]}  Rb5 {[%clk 0:00:06]} 71. Ne3 {[%clk 0:00:08]}  Re6 {[%clk 0:00:07]} 72. Rxe6 {[%clk 0:00:06]}  fxe6 {[%clk 0:00:08]} 73. Kc2 {[%clk 0:00:06]}  Kc7 {[%clk 0:00:08]} 74. Kc1 {[%clk 0:00:06]}  Kd6 {[%clk 0:00:08]} 75. Nc2 {[%clk 0:00:06]}  Rb6 {[%clk 0:00:08]} 76. Nb4 {[%clk 0:00:06]}  Rb5 {[%clk 0:00:09]} 77. Kd2 {[%clk 0:00:07]}  Ra5 {[%clk 0:00:10]} 78. Ke3 {[%clk 0:00:07]}  Ra8 {[%clk 0:00:10]} 79. Kd2 {[%clk 0:00:07]}  Ra5 {[%clk 0:00:07]} 80. Ke3 {[%clk 0:00:07]}  Rb5 {[%clk 0:00:07]} 81. Kd2 {[%clk 0:00:07]}  Rb6 {[%clk 0:00:05]} 82. Ke3 {[%clk 0:00:08]}  e5 {[%clk 0:00:04]} 83. fxe5+ {[%clk 0:00:07]}  Ke6 {[%clk 0:00:05]} 84. Kf4 {[%clk 0:00:08]}  Rb5 {[%clk 0:00:05]} 85. Kf3 {[%clk 0:00:07]}  Ra5 {[%clk 0:00:06]} 86. Kf4 {[%clk 0:00:08]}  Rb5 {[%clk 0:00:06]} 87. Ke3 {[%clk 0:00:08]}  Rb6 {[%clk 0:00:07]} 88. Kf4 {[%clk 0:00:08]}  Rb5 {[%clk 0:00:07]} 1/2-1/2


[Site "https://www.chess.com"]

[Event "Titled Tuesday Blitz October 31 Late 2023"]
[White "Mindhunter08"]
[Black "Horton, Andrew P"]
[BlackFideId "424269"]
[WhiteElo "2435"]
[BlackElo "2755"]
[Result "0-1"]
[Round "1"]
[TimeControl "180+1"]
[Date "2023.10.31"]
[WhiteClock "0:00:05"]
[BlackClock "0:00:40"]
[Board "56"]

1. e4 {[%clk 0:03:00]}  d6 {[%clk 0:02:57]} 2. d4 {[%clk 0:03:00]}  Nd7 {[%clk 0:02:56]} 3. Nf3 {[%clk 0:02:59]}  e5 {[%clk 0:02:55]} 4. Nc3 {[%clk 0:02:52]}  Ngf6 {[%clk 0:02:55]} 5. Bc4 {[%clk 0:02:34]}  h6 {[%clk 0:02:54]} 6. a4 {[%clk 0:02:33]}  Be7 {[%clk 0:02:52]} 7. O-O {[%clk 0:02:28]}  a5 {[%clk 0:02:52]} 8. h3 {[%clk 0:02:22]}  O-O {[%clk 0:02:51]} 9. Bb3 {[%clk 0:02:19]}  Re8 {[%clk 0:02:43]} 10. dxe5 {[%clk 0:02:16]}  dxe5 {[%clk 0:02:39]} 11. Be3 {[%clk 0:02:06]}  c6 {[%clk 0:02:37]} 12. Qe2 {[%clk 0:01:58]}  Bb4 {[%clk 0:02:32]} 13. Rad1 {[%clk 0:01:49]}  Qe7 {[%clk 0:02:30]} 14. Na2 {[%clk 0:01:22]}  Bc5 {[%clk 0:02:14]} 15. Nc3 {[%clk 0:01:12]}  Bb4 {[%clk 0:02:10]} 16. Na2 {[%clk 0:01:12]}  Bd6 {[%clk 0:02:08]} 17. Qc4 {[%clk 0:01:02]}  Nf8 {[%clk 0:01:52]} 18. Nc3 {[%clk 0:00:43]}  Be6 {[%clk 0:01:50]} 19. Qd3 {[%clk 0:00:40]}  Bxb3 {[%clk 0:01:49]} 20. cxb3 {[%clk 0:00:41]}  Bb4 {[%clk 0:01:47]} 21. Qc4 {[%clk 0:00:37]}  Ng6 {[%clk 0:01:42]} 22. g3 {[%clk 0:00:33]}  Red8 {[%clk 0:01:39]} 23. Kg2 {[%clk 0:00:33]}  Rxd1 {[%clk 0:01:26]} 24. Rxd1 {[%clk 0:00:34]}  Rd8 {[%clk 0:01:27]} 25. Rd3 {[%clk 0:00:27]}  Rd7 {[%clk 0:01:22]} 26. h4 {[%clk 0:00:24]}  Ng4 {[%clk 0:01:18]} 27. Bb6 {[%clk 0:00:24]}  Nf8 {[%clk 0:01:15]} 28. Na2 {[%clk 0:00:22]}  Rxd3 {[%clk 0:01:12]} 29. Qxd3 {[%clk 0:00:22]}  Bc5 {[%clk 0:01:12]} 30. Bxc5 {[%clk 0:00:16]}  Qxc5 {[%clk 0:01:13]} 31. Qe2 {[%clk 0:00:15]}  h5 {[%clk 0:01:11]} 32. Nc1 {[%clk 0:00:13]}  Qxc1 {[%clk 0:01:07]} 33. Ng5 {[%clk 0:00:10]}  Qc5 {[%clk 0:00:59]} 34. Qf3 {[%clk 0:00:08]}  f6 {[%clk 0:00:57]} 35. Nh3 {[%clk 0:00:08]}  Qd6 {[%clk 0:00:53]} 36. Qf5 {[%clk 0:00:08]}  g6 {[%clk 0:00:46]} 37. Qf3 {[%clk 0:00:05]}  Ne6 {[%clk 0:00:43]} 38. Qe2 {[%clk 0:00:05]}  Qd4 {[%clk 0:00:43]} 39. Qc2 {[%clk 0:00:04]}  Nc5 {[%clk 0:00:42]} 40. Qe2 {[%clk 0:00:04]}  Qxe4+ {[%clk 0:00:39]} 41. Qxe4 {[%clk 0:00:04]}  Nxe4 {[%clk 0:00:40]} 42. f3 {[%clk 0:00:05]}  Ne3+ {[%clk 0:00:40]} 43. Kg1 {[%clk 0:00:05]}  Nxg3 {[%clk 0:00:40]} 44. Kf2 {[%clk 0:00:05]}  Ngf5 {[%clk 0:00:40]} 45. f4 {[%clk 0:00:05]}  Nd5 {[%clk 0:00:40]} 0-1


[Site "https://www.chess.com"]

[Event "Titled Tuesday Blitz October 31 Late 2023"]
[White "Mazurkiewicz, Michal"]
[Black "Danielyan, Vahe"]
[WhiteFideId "1124943"]
[BlackFideId "13304828"]
[WhiteElo "2430"]
[BlackElo "2754"]
[Result "1-0"]
[Round "1"]
[TimeControl "180+1"]
[Date "2023.10.31"]
[WhiteClock "0:00:08"]
[BlackClock "0:00:51"]
[Board "58"]

1. e4 {[%clk 0:02:59]}  c5 {[%clk 0:02:57]} 2. Nf3 {[%clk 0:03:00]}  d6 {[%clk 0:02:58]} 3. g3 {[%clk 0:03:00]}  Nf6 {[%clk 0:02:57]} 4. d3 {[%clk 0:03:00]}  g6 {[%clk 0:02:57]} 5. Bg2 {[%clk 0:03:01]}  Bg7 {[%clk 0:02:57]} 6. O-O {[%clk 0:03:01]}  O-O {[%clk 0:02:58]} 7. Re1 {[%clk 0:03:02]}  Nc6 {[%clk 0:02:58]} 8. e5 {[%clk 0:03:02]}  dxe5 {[%clk 0:02:58]} 9. Nxe5 {[%clk 0:03:03]}  Nxe5 {[%clk 0:02:55]} 10. Rxe5 {[%clk 0:03:04]}  Bg4 {[%clk 0:02:49]} 11. Qe1 {[%clk 0:03:04]}  Qb6 {[%clk 0:01:57]} 12. Nc3 {[%clk 0:02:49]}  Rfe8 {[%clk 0:01:55]} 13. Na4 {[%clk 0:02:32]}  Qd6 {[%clk 0:01:53]} 14. Nxc5 {[%clk 0:02:31]}  Nh5 {[%clk 0:01:46]} 15. Rd5 {[%clk 0:02:23]}  Qb6 {[%clk 0:01:34]} 16. h3 {[%clk 0:01:46]}  e6 {[%clk 0:01:25]} 17. Nd7 {[%clk 0:00:49]}  Qc7 {[%clk 0:01:25]} 18. Rc5 {[%clk 0:00:50]}  Qxd7 {[%clk 0:01:25]} 19. hxg4 {[%clk 0:00:50]}  Nf6 {[%clk 0:01:26]} 20. Bf4 {[%clk 0:00:47]}  Nd5 {[%clk 0:01:23]} 21. Bxd5 {[%clk 0:00:44]}  exd5 {[%clk 0:01:24]} 22. Qb4 {[%clk 0:00:44]}  Bf8 {[%clk 0:01:21]} 23. Qb5 {[%clk 0:00:40]}  Qe6 {[%clk 0:01:17]} 24. Rxd5 {[%clk 0:00:36]}  a6 {[%clk 0:01:17]} 25. Qd7 {[%clk 0:00:28]}  Qe2 {[%clk 0:01:14]} 26. Rc1 {[%clk 0:00:21]}  Re7 {[%clk 0:01:13]} 27. Qxe7 {[%clk 0:00:06]}  Re8 {[%clk 0:01:14]} 28. Qxe2 {[%clk 0:00:05]}  Rxe2 {[%clk 0:01:12]} 29. Re5 {[%clk 0:00:06]}  Rxe5 {[%clk 0:01:11]} 30. Bxe5 {[%clk 0:00:07]}  Bh6 {[%clk 0:01:12]} 31. f4 {[%clk 0:00:07]}  f6 {[%clk 0:01:12]} 32. Bxf6 {[%clk 0:00:07]}  Kf7 {[%clk 0:01:13]} 33. g5 {[%clk 0:00:07]}  Bf8 {[%clk 0:00:51]} 34. Re1 {[%clk 0:00:08]} 1-0


[Site "https://www.chess.com"]

[Event "Titled Tuesday Blitz October 31 Late 2023"]
[White "Belenkaya, Dina"]
[Black "Krzyzanowski, Marcin"]
[WhiteFideId "24142654"]
[BlackFideId "1132199"]
[WhiteElo "2424"]
[BlackElo "2752"]
[Result "0-1"]
[Round "1"]
[TimeControl "180+1"]
[Date "2023.10.31"]
[WhiteClock "0:00:14"]
[BlackClock "0:00:16"]
[Board "60"]

1. g3 {[%clk 0:02:55]}  d5 {[%clk 0:02:59]} 2. Nf3 {[%clk 0:02:55]}  Nc6 {[%clk 0:02:59]} 3. Bg2 {[%clk 0:02:55]}  e5 {[%clk 0:02:59]} 4. d3 {[%clk 0:02:55]}  Nf6 {[%clk 0:02:58]} 5. Nbd2 {[%clk 0:02:55]}  Be7 {[%clk 0:02:55]} 6. O-O {[%clk 0:02:55]}  O-O {[%clk 0:02:55]} 7. e4 {[%clk 0:02:50]}  dxe4 {[%clk 0:02:52]} 8. dxe4 {[%clk 0:02:50]}  Be6 {[%clk 0:02:51]} 9. Qe2 {[%clk 0:02:51]}  Nd4 {[%clk 0:02:45]} 10. Nxd4 {[%clk 0:02:50]}  Qxd4 {[%clk 0:02:44]} 11. c3 {[%clk 0:02:36]}  Qa4 {[%clk 0:02:41]} 12. Re1 {[%clk 0:02:29]}  Rad8 {[%clk 0:02:40]} 13. b3 {[%clk 0:02:27]}  Qc6 {[%clk 0:02:37]} 14. Bb2 {[%clk 0:02:27]}  a5 {[%clk 0:02:35]} 15. c4 {[%clk 0:02:20]}  Bc5 {[%clk 0:02:24]} 16. Kh1 {[%clk 0:02:04]}  Ng4 {[%clk 0:02:06]} 17. Rf1 {[%clk 0:01:56]}  Qb6 {[%clk 0:02:05]} 18. f4 {[%clk 0:01:43]}  Nf2+ {[%clk 0:01:23]} 19. Rxf2 {[%clk 0:01:43]}  Bxf2 {[%clk 0:01:24]} 20. f5 {[%clk 0:01:36]}  Bc8 {[%clk 0:01:05]} 21. Bxe5 {[%clk 0:01:18]}  Bd4 {[%clk 0:01:04]} 22. Bxd4 {[%clk 0:01:12]}  Qxd4 {[%clk 0:01:05]} 23. Rd1 {[%clk 0:01:11]}  Rfe8 {[%clk 0:01:06]} 24. g4 {[%clk 0:01:00]}  Qd3 {[%clk 0:00:58]} 25. Bf3 {[%clk 0:00:56]}  Qxe2 {[%clk 0:00:48]} 26. Bxe2 {[%clk 0:00:57]}  Rd4 {[%clk 0:00:49]} 27. Nf1 {[%clk 0:00:43]}  Rdxe4 {[%clk 0:00:43]} 28. Bf3 {[%clk 0:00:40]}  Re1 {[%clk 0:00:43]} 29. Kg2 {[%clk 0:00:36]}  Rxd1 {[%clk 0:00:43]} 30. Bxd1 {[%clk 0:00:37]}  Re1 {[%clk 0:00:39]} 31. Bf3 {[%clk 0:00:37]}  Ra1 {[%clk 0:00:36]} 32. a4 {[%clk 0:00:31]}  Rb1 {[%clk 0:00:36]} 33. Ne3 {[%clk 0:00:24]}  Rxb3 {[%clk 0:00:36]} 34. Nd5 {[%clk 0:00:25]}  Kf8 {[%clk 0:00:33]} 35. Nxc7 {[%clk 0:00:25]}  Rb4 {[%clk 0:00:30]} 36. Nb5 {[%clk 0:00:24]}  Rxc4 {[%clk 0:00:26]} 37. Nd6 {[%clk 0:00:24]}  Rc2+ {[%clk 0:00:26]} 38. Kg3 {[%clk 0:00:25]}  Bd7 {[%clk 0:00:26]} 39. Nxb7 {[%clk 0:00:23]}  Bxa4 {[%clk 0:00:23]} 40. Nxa5 {[%clk 0:00:23]}  Rc3 {[%clk 0:00:23]} 41. Kf4 {[%clk 0:00:20]}  f6 {[%clk 0:00:19]} 42. h4 {[%clk 0:00:17]}  g5+ {[%clk 0:00:18]} 43. fxg6 {[%clk 0:00:15]}  hxg6 {[%clk 0:00:19]} 44. g5 {[%clk 0:00:13]}  f5 {[%clk 0:00:13]} 45. Nb7 {[%clk 0:00:12]}  Rxf3+ {[%clk 0:00:12]} 46. Kxf3 {[%clk 0:00:11]}  Bc6+ {[%clk 0:00:13]} 47. Kf4 {[%clk 0:00:12]}  Bxb7 {[%clk 0:00:14]} 48. h5 {[%clk 0:00:12]}  gxh5 {[%clk 0:00:13]} 49. Kxf5 {[%clk 0:00:13]}  Bf3 {[%clk 0:00:12]} 50. Kf4 {[%clk 0:00:12]}  Bg4 {[%clk 0:00:12]} 51. Kg3 {[%clk 0:00:10]}  Kg7 {[%clk 0:00:12]} 52. Kh4 {[%clk 0:00:10]}  Kg6 {[%clk 0:00:13]} 53. Kg3 {[%clk 0:00:11]}  Kxg5 {[%clk 0:00:14]} 54. Kh2 {[%clk 0:00:11]}  h4 {[%clk 0:00:14]} 55. Kg1 {[%clk 0:00:12]}  Kf4 {[%clk 0:00:15]} 56. Kh2 {[%clk 0:00:12]}  h3 {[%clk 0:00:14]} 57. Kg1 {[%clk 0:00:12]}  Kg3 {[%clk 0:00:14]} 58. Kh1 {[%clk 0:00:13]}  Bf3+ {[%clk 0:00:15]} 59. Kg1 {[%clk 0:00:13]}  h2+ {[%clk 0:00:15]} 60. Kf1 {[%clk 0:00:14]}  h1=Q# {[%clk 0:00:16]} 0-1


[Site "https://www.chess.com"]

[Event "Titled Tuesday Blitz October 31 Late 2023"]
[White "Koellner, Ruben Gideon"]
[Black "Polaczek, Richard"]
[WhiteFideId "12993093"]
[BlackFideId "200026"]
[WhiteElo "2751"]
[BlackElo "2424"]
[Result "1-0"]
[Round "1"]
[TimeControl "180+1"]
[Date "2023.10.31"]
[WhiteClock "0:01:43"]
[BlackClock "0:00:34"]
[Board "61"]

1. d4 {[%clk 0:02:30]}  Nf6 {[%clk 0:02:58]} 2. Nf3 {[%clk 0:02:27]}  d5 {[%clk 0:02:57]} 3. e3 {[%clk 0:02:27]}  c5 {[%clk 0:02:51]} 4. c3 {[%clk 0:02:22]}  Nc6 {[%clk 0:02:45]} 5. Nbd2 {[%clk 0:02:22]}  e6 {[%clk 0:02:35]} 6. Bd3 {[%clk 0:02:17]}  Bd6 {[%clk 0:02:31]} 7. O-O {[%clk 0:02:16]}  O-O {[%clk 0:02:15]} 8. dxc5 {[%clk 0:02:15]}  Bxc5 {[%clk 0:02:14]} 9. b4 {[%clk 0:02:14]}  Bd6 {[%clk 0:02:12]} 10. Bb2 {[%clk 0:02:13]}  a6 {[%clk 0:01:45]} 11. a3 {[%clk 0:02:11]}  b5 {[%clk 0:01:40]} 12. a4 {[%clk 0:02:11]}  Rb8 {[%clk 0:01:36]} 13. axb5 {[%clk 0:02:11]}  axb5 {[%clk 0:01:36]} 14. Qe2 {[%clk 0:02:11]}  Qb6 {[%clk 0:01:34]} 15. e4 {[%clk 0:02:08]}  Be7 {[%clk 0:01:11]} 16. e5 {[%clk 0:02:07]}  Nd7 {[%clk 0:01:10]} 17. Rfe1 {[%clk 0:02:07]}  Ba6 {[%clk 0:00:55]} 18. Nb3 {[%clk 0:02:04]}  Rfe8 {[%clk 0:00:50]} 19. Bc1 {[%clk 0:02:04]}  Nf8 {[%clk 0:00:47]} 20. Be3 {[%clk 0:02:04]}  Qb7 {[%clk 0:00:44]} 21. Nc5 {[%clk 0:02:02]}  Bxc5 {[%clk 0:00:43]} 22. Bxc5 {[%clk 0:02:03]}  Nd7 {[%clk 0:00:43]} 23. Bd6 {[%clk 0:02:02]}  Ra8 {[%clk 0:00:42]} 24. Qc2 {[%clk 0:02:02]}  Na7 {[%clk 0:00:40]} 25. Bxh7+ {[%clk 0:02:01]}  Kh8 {[%clk 0:00:40]} 26. Bd3 {[%clk 0:02:01]}  Nc8 {[%clk 0:00:39]} 27. Ng5 {[%clk 0:01:57]}  Nf8 {[%clk 0:00:39]} 28. Bxf8 {[%clk 0:01:46]}  Rxf8 {[%clk 0:00:38]} 29. Bxb5 {[%clk 0:01:46]}  g6 {[%clk 0:00:35]} 30. Qd3 {[%clk 0:01:42]}  Bxb5 {[%clk 0:00:34]} 31. Qh3+ {[%clk 0:01:42]}  Kg7 {[%clk 0:00:34]} 32. Qh7# {[%clk 0:01:43]} 1-0


[Site "https://www.chess.com"]

[Event "Titled Tuesday Blitz October 31 Late 2023"]
[White "Devagharan, Devina"]
[Black "Szpar, Milosz"]
[WhiteFideId "2061600"]
[BlackFideId "1184989"]
[WhiteElo "2424"]
[BlackElo "2750"]
[Result "0-1"]
[Round "1"]
[TimeControl "180+1"]
[Date "2023.10.31"]
[WhiteClock "0:00:17"]
[BlackClock "0:01:19"]
[Board "62"]

1. d4 {[%clk 0:02:59]}  d5 {[%clk 0:02:57]} 2. c4 {[%clk 0:02:58]}  e6 {[%clk 0:02:57]} 3. Nc3 {[%clk 0:02:58]}  c6 {[%clk 0:02:55]} 4. cxd5 {[%clk 0:02:50]}  exd5 {[%clk 0:02:55]} 5. Nf3 {[%clk 0:02:49]}  Bd6 {[%clk 0:02:53]} 6. Bg5 {[%clk 0:02:38]}  Ne7 {[%clk 0:02:52]} 7. e3 {[%clk 0:02:38]}  Qb6 {[%clk 0:02:43]} 8. Qd2 {[%clk 0:02:30]}  h6 {[%clk 0:02:42]} 9. Bxe7 {[%clk 0:02:21]}  Bxe7 {[%clk 0:02:43]} 10. Bd3 {[%clk 0:02:21]}  Be6 {[%clk 0:02:38]} 11. O-O {[%clk 0:02:20]}  Nd7 {[%clk 0:02:38]} 12. a3 {[%clk 0:02:16]}  a5 {[%clk 0:02:37]} 13. Rac1 {[%clk 0:02:06]}  O-O {[%clk 0:02:36]} 14. Bb1 {[%clk 0:01:35]}  f5 {[%clk 0:02:27]} 15. Ne5 {[%clk 0:01:04]}  Nxe5 {[%clk 0:02:24]} 16. dxe5 {[%clk 0:01:05]}  Rad8 {[%clk 0:02:22]} 17. Rfd1 {[%clk 0:01:01]}  Kh8 {[%clk 0:02:14]} 18. Ne2 {[%clk 0:01:01]}  Qc7 {[%clk 0:02:10]} 19. Nf4 {[%clk 0:00:59]}  Bf7 {[%clk 0:02:06]} 20. e6 {[%clk 0:00:55]}  Be8 {[%clk 0:02:07]} 21. Nxd5 {[%clk 0:00:51]}  Qe5 {[%clk 0:01:53]} 22. Nxe7 {[%clk 0:00:41]}  Rxd2 {[%clk 0:01:53]} 23. Rxd2 {[%clk 0:00:39]}  Qxe6 {[%clk 0:01:53]} 24. Nxf5 {[%clk 0:00:36]}  Rxf5 {[%clk 0:01:51]} 25. Bxf5 {[%clk 0:00:37]}  Qxf5 {[%clk 0:01:51]} 26. Rcd1 {[%clk 0:00:37]}  Kh7 {[%clk 0:01:50]} 27. Rd8 {[%clk 0:00:37]}  Bh5 {[%clk 0:01:49]} 28. f3 {[%clk 0:00:35]}  Qf6 {[%clk 0:01:41]} 29. R8d2 {[%clk 0:00:32]}  c5 {[%clk 0:01:37]} 30. Rc1 {[%clk 0:00:33]}  Qe5 {[%clk 0:01:35]} 31. Rc3 {[%clk 0:00:32]}  b5 {[%clk 0:01:34]} 32. Rdc2 {[%clk 0:00:30]}  b4 {[%clk 0:01:33]} 33. axb4 {[%clk 0:00:30]}  cxb4 {[%clk 0:01:33]} 34. Rd3 {[%clk 0:00:27]}  Qb5 {[%clk 0:01:30]} 35. Rcd2 {[%clk 0:00:26]}  Bf7 {[%clk 0:01:22]} 36. e4 {[%clk 0:00:24]}  a4 {[%clk 0:01:20]} 37. Kf2 {[%clk 0:00:22]}  Qc5+ {[%clk 0:01:18]} 38. Kg3 {[%clk 0:00:21]}  a3 {[%clk 0:01:18]} 39. bxa3 {[%clk 0:00:20]}  bxa3 {[%clk 0:01:19]} 40. Rd1 {[%clk 0:00:20]}  a2 {[%clk 0:01:19]} 41. Ra1 {[%clk 0:00:17]}  Qe5+ {[%clk 0:01:19]} 0-1


[Site "https://www.chess.com"]

[Event "Titled Tuesday Blitz October 31 Late 2023"]
[White "Rastbod, Ali"]
[Black "victormago"]
[WhiteFideId "12567477"]
[WhiteElo "2747"]
[BlackElo "2423"]
[Result "1-0"]
[Round "1"]
[TimeControl "180+1"]
[Date "2023.10.31"]
[WhiteClock "0:00:05"]
[BlackClock "0:00:00"]
[Board "63"]

1. e4 {[%clk 0:02:52]}  c5 {[%clk 0:02:58]} 2. Nc3 {[%clk 0:02:53]}  d6 {[%clk 0:02:56]} 3. d4 {[%clk 0:02:52]}  cxd4 {[%clk 0:02:56]} 4. Qxd4 {[%clk 0:02:53]}  Nc6 {[%clk 0:02:56]} 5. Qd2 {[%clk 0:02:54]}  g6 {[%clk 0:02:54]} 6. b3 {[%clk 0:02:54]}  Bg7 {[%clk 0:02:54]} 7. Bb2 {[%clk 0:02:54]}  Nf6 {[%clk 0:02:54]} 8. O-O-O {[%clk 0:02:54]}  O-O {[%clk 0:02:53]} 9. f3 {[%clk 0:02:54]}  a5 {[%clk 0:02:53]} 10. a4 {[%clk 0:02:54]}  Be6 {[%clk 0:02:50]} 11. Nge2 {[%clk 0:02:52]}  Rc8 {[%clk 0:02:47]} 12. Nf4 {[%clk 0:02:52]}  Nb4 {[%clk 0:02:32]} 13. Kb1 {[%clk 0:02:47]}  Bd7 {[%clk 0:02:25]} 14. g4 {[%clk 0:02:40]}  Bc6 {[%clk 0:02:06]} 15. Bc4 {[%clk 0:02:11]}  Nd7 {[%clk 0:01:55]} 16. Nd3 {[%clk 0:02:05]}  Nxd3 {[%clk 0:01:47]} 17. cxd3 {[%clk 0:02:06]}  Ne5 {[%clk 0:01:43]} 18. Qe2 {[%clk 0:02:05]}  e6 {[%clk 0:01:38]} 19. f4 {[%clk 0:01:59]}  Nd7 {[%clk 0:01:37]} 20. d4 {[%clk 0:01:56]}  Nb6 {[%clk 0:01:31]} 21. Bb5 {[%clk 0:01:56]}  Bxb5 {[%clk 0:01:29]} 22. Nxb5 {[%clk 0:01:57]}  Qd7 {[%clk 0:01:22]} 23. Rc1 {[%clk 0:01:52]}  d5 {[%clk 0:01:17]} 24. e5 {[%clk 0:01:52]}  Rc6 {[%clk 0:01:17]} 25. Nd6 {[%clk 0:01:45]}  Nc8 {[%clk 0:01:12]} 26. Nb5 {[%clk 0:01:37]}  Nb6 {[%clk 0:01:07]} 27. Na7 {[%clk 0:01:28]}  Rxc1+ {[%clk 0:01:04]} 28. Rxc1 {[%clk 0:01:29]}  Ra8 {[%clk 0:01:02]} 29. Nb5 {[%clk 0:01:25]}  Rc8 {[%clk 0:00:56]} 30. Bc3 {[%clk 0:01:19]}  Ra8 {[%clk 0:00:46]} 31. Qd2 {[%clk 0:01:18]}  Bf8 {[%clk 0:00:31]} 32. Bxa5 {[%clk 0:01:16]}  Nc8 {[%clk 0:00:15]} 33. Rc7 {[%clk 0:01:12]}  Qe8 {[%clk 0:00:16]} 34. Bb4 {[%clk 0:01:12]}  Nb6 {[%clk 0:00:11]} 35. Rxb7 {[%clk 0:01:06]}  Nxa4 {[%clk 0:00:10]} 36. bxa4 {[%clk 0:01:02]}  Rxa4 {[%clk 0:00:10]} 37. Bxf8 {[%clk 0:00:56]}  Qxf8 {[%clk 0:00:11]} 38. Nd6 {[%clk 0:00:55]}  Qa8 {[%clk 0:00:11]} 39. Qb2 {[%clk 0:00:55]}  Qa5 {[%clk 0:00:08]} 40. Kc2 {[%clk 0:00:19]}  Ra2 {[%clk 0:00:06]} 41. f5 {[%clk 0:00:06]}  Rxb2+ {[%clk 0:00:06]} 42. Kxb2 {[%clk 0:00:07]}  gxf5 {[%clk 0:00:06]} 43. gxf5 {[%clk 0:00:07]}  Qd2+ {[%clk 0:00:05]} 44. Kb3 {[%clk 0:00:07]}  Qd3+ {[%clk 0:00:05]} 45. Ka2 {[%clk 0:00:06]}  Qa6+ {[%clk 0:00:03]} 46. Kb1 {[%clk 0:00:05]}  Qd3+ {[%clk 0:00:03]} 47. Ka2 {[%clk 0:00:05]}  exf5 {[%clk 0:00:03]} 48. Rb8+ {[%clk 0:00:03]}  Kg7 {[%clk 0:00:04]} 49. Ne8+ {[%clk 0:00:03]}  Kg6 {[%clk 0:00:04]} 50. Rb6+ {[%clk 0:00:04]}  Kg5 {[%clk 0:00:05]} 51. Rb4 {[%clk 0:00:03]}  Qd2+ {[%clk 0:00:04]} 52. Kb3 {[%clk 0:00:04]}  Qd1+ {[%clk 0:00:03]} 53. Ka3 {[%clk 0:00:04]}  Qa1+ {[%clk 0:00:02]} 54. Kb3 {[%clk 0:00:04]}  Qb1+ {[%clk 0:00:02]} 55. Ka3 {[%clk 0:00:04]}  Qc1+ {[%clk 0:00:02]} 56. Kb3 {[%clk 0:00:05]}  Kf4 {[%clk 0:00:00]} 57. Nf6 {[%clk 0:00:05]} 1-0


[Site "https://www.chess.com"]